fUST/lending_fUST_20241201
["ID","MTS","AMOUNT","RATE_DAILY","PERIOD"]
[343903407,1733017833139,-10334.11111441,0.00020112,2]
[343903408,1733017833151,-2649.7262702,0.00020112,2]
[343903409,1733017833162,-3763.09915215,0.00020112,2]
[343903410,1733017835913,-500.0,0.00020111,2]
[343903411,1733017835923,-500.0,0.00020111,2]
[343903412,1733017835932,-500.0,0.00020111,2]
[343903413,1733017835942,-500.0,0.00020111,2]
[343903414,1733017835952,-500.0,0.00020111,2]
[343903415,1733017835964,-500.0,0.00020111,2]
[343903416,1733017835976,-500.0,0.00020111,2]
[343903417,1733017835988,-379.71769421,0.00020111,2]
[343903422,1733017838460,-120.28230579,0.00020111,2]
[343903424,1733017838473,-500.0,0.00020111,2]
[343903426,1733017838483,-500.0,0.00020111,2]
[343903428,1733017838493,-500.0,0.00020111,2]
[343903429,1733017838503,-500.0,0.00020111,2]
[343903430,1733017838513,-500.0,0.00020111,2]
[343903431,1733017838523,-500.0,0.00020111,2]
[343903432,1733017838533,-461.01345435,0.00020111,2]
[343903433,1733017838667,-38.98654565,0.00020111,2]
[343903435,1733017838677,-500.0,0.00020111,2]
[343903436,1733017838686,-293.11285238,0.00020111,2]
[343903437,1733017838696,-500.0,0.00020111,2]
[343903438,1733017838706,-500.0,0.00020111,2]
[343903439,1733017838718,-500.0,0.00020111,2]
[343903440,1733017838727,-70756.06346324,0.00020112,2]
[343903442,1733017838737,-274.48050254,0.00020117,2]
[343903444,1733017838746,-305.05608158,0.0002012,2]
[343903446,1733017838756,-500.0,0.0002012,2]
[343903447,1733017838765,-300.8596873,0.0002012,2]
[343903448,1733017838775,-301.04387037,0.0002012,2]
[343903449,1733017838784,-649.40838851,0.0002012,2]
[343903450,1733017838794,-7653.21583529,0.00020121,2]
[343903456,1733017840405,-2071.10046776,0.00020121,2]
[343903465,1733017844058,-1169.27083333,0.0002,2]
[343903466,1733017844069,-10654.25615036,0.00020121,2]
[343903467,1733017844082,-4521.42754659,0.00020121,2]
[343903468,1733017844092,-446.9397211,0.00020292,2]
[343903469,1733017844101,-189.2467079,0.00021352,2]
[343903470,1733017844111,-420.0,0.00021897,2]
[343903471,1733017844120,-202.0,0.00022123,2]
[343903472,1733017844131,-159.4916454,0.00023562,2]
[343903473,1733017844141,-500.0,0.00023819,2]
[343903474,1733017844152,-587.0,0.00023841,2]
[343903475,1733017844162,-358.40959511,0.00024557,2]
[343903476,1733017844171,-206.46967422,0.00024557,2]
[343903477,1733017844183,-500.0,0.00024657,3]
[343903478,1733017844192,-505.57722914,0.00024657,3]
[343903479,1733017844202,-507.47019635,0.00024657,3]
[343903480,1733017844211,-560.4028216,0.00024657,3]
[343903481,1733017844224,-590.0,0.00024657,3]
[343903482,1733017844233,-506.16831589,0.00024657,3]
[343903483,1733017844243,-501.92241749,0.00024657,3]
[343903484,1733017844253,-4.07162985,0.00024657,3]
[343903596,1733019032622,-722.59937,0.00018989,2]
[343903597,1733019032637,-2932.88887826,0.00018989,2]
[343903598,1733019032656,-2529.72260633,0.00018989,2]
[343903603,1733019038676,-44.13071741,0.00018989,2]
[343903604,1733019038688,-239.847244,0.00018993,2]
[343903605,1733019038699,-76.42861598,0.00019106,2]
[343903606,1733019039007,-223.57138402,0.00019106,2]
[343903607,1733019039018,-300.0,0.00019106,2]
[343903608,1733019039029,-500.0,0.00019107,2]
[343903609,1733019039041,-500.0,0.00019107,2]
[343903610,1733019039052,-238.37868841,0.00019107,2]
[343903611,1733019039063,-368.35935228,0.00019973,2]
[343903612,1733019039073,-500.0,0.00019973,2]
[343903613,1733019039084,-501.46062903,0.00019973,2]
[343903614,1733019039095,-397.14603076,0.00019973,2]
[343903615,1733019039105,-505.77451353,0.00019973,2]
[343903616,1733019039117,-151.62744158,0.00019973,2]
[343903617,1733019039127,-5000.0,0.00019998,2]
[343903618,1733019039141,-3073.3697285,0.00019999,2]
[343903620,1733019039256,-1266.66301059,0.00019999,2]
[343903621,1733019039268,-500.0,0.00019999,2]
[343903623,1733019039280,-500.0,0.00019999,2]
[343903625,1733019039291,-221.06803572,0.00019999,2]
[343903628,1733019039310,-500.0,0.00019999,2]
[343903630,1733019039327,-504.28298024,0.00019999,2]
[343903631,1733019039339,-500.72628672,0.00019999,2]
[343903632,1733019039351,-374.79547852,0.00019999,2]
[343903633,1733019039362,-504.3932113,0.00019999,2]
[343903634,1733019039373,-500.0,0.00019999,2]
[343903635,1733019039385,-646.74334583,0.00019999,2]
[343903636,1733019039405,-518.1116548,0.00019999,2]
[343903637,1733019039418,-500.0,0.00019999,2]
[343903638,1733019039429,-500.0,0.00019999,2]
[343903639,1733019039441,-350.78282384,0.00019999,2]
[343903640,1733019039451,-429.31128524,0.00019999,2]
[343903641,1733019039462,-312.41844277,0.00019999,2]
[343903642,1733019039473,-605.92308145,0.0002,2]
[343903643,1733019039485,-1169.27083333,0.0002,2]
[343903644,1733019039496,-98696.0,0.0002,2]
[343903645,1733019039507,-502.02133247,0.00020073,2]
[343903646,1733019039518,-275.58290779,0.00020521,2]
[343903647,1733019039529,-420.0,0.00020823,2]
[343903648,1733019039541,-213.5392571,0.00020994,2]
[343903649,1733019039552,-210.60178111,0.00020994,2]
[343903650,1733019039563,-500.0,0.00020994,2]
[343903651,1733019039574,-210.73070926,0.00020994,2]
[343903652,1733019039585,-377.78537322,0.00020994,2]
[343903653,1733019039596,-3000.0,0.00021,2]
[343903654,1733019039607,-3000.0,0.0002101,2]
[343903655,1733019039617,-3000.0,0.0002102,2]
[343903656,1733019039627,-3000.0,0.0002103,2]
[343903657,1733019039643,-3000.0,0.0002104,2]
[343903658,1733019039653,-3000.0,0.0002105,2]
[343903659,1733019039664,-3000.0,0.0002106,2]
[343903660,1733019039675,-3187.175179,0.0002107,2]
[343903661,1733019039684,-151.62744155,0.00021469,2]
[343903662,1733019039694,-587.0,0.00022695,2]
[343903663,1733019039704,-151.62744155,0.00022965,2]
[343903664,1733019039715,-157.492208,0.00023562,2]
[343903665,1733019039725,-151.62744155,0.00024461,2]
[343903666,1733019039735,-1169.27083333,0.00024657,3]
[343903667,1733019039746,-1169.27083333,0.00024657,3]
[343903668,1733019039757,-1169.27083333,0.00024657,3]
[343903669,1733019039768,-500.0,0.00024657,3]
[343903670,1733019039778,-628.52350463,0.00024657,3]
[343903671,1733019039790,-500.0,0.00024657,3]
[343903672,1733019039802,-500.0,0.00024657,3]
[343903673,1733019039812,-500.0,0.00024657,3]
[343903674,1733019039823,-500.0,0.00024657,3]
[343903675,1733019039834,-385.7171969,0.00024657,3]
[343903676,1733019039844,-500.0,0.00024657,3]
[343903677,1733019039854,-201.57425887,0.00024657,3]
[343903678,1733019039864,-505.66599136,0.00024657,3]
[343903679,1733019039875,-500.0,0.00024657,3]
[343903680,1733019039886,-500.0,0.00024657,3]
[343903681,1733019039903,-518.59222794,0.00024657,3]
[343903682,1733019039913,-501.65113627,0.00024657,3]
[343903683,1733019039923,-505.25736126,0.00024657,3]
[343903684,1733019039933,-348.00267495,0.00024657,3]
[343903685,1733019039943,-500.0,0.00024657,3]
[343903686,1733019039954,-580.67863706,0.00024657,3]
[343903687,1733019039964,-500.0,0.00024657,3]
[343903688,1733019039976,-501.68399566,0.00024657,3]
[343903689,1733019039987,-505.84306426,0.00024657,3]
[343903690,1733019039998,-509.4106277,0.00024657,3]
[343903691,1733019040010,-506.65930246,0.00024657,3]
[343903692,1733019040021,-500.0,0.00024657,3]
[343903693,1733019040032,-500.0,0.00024657,3]
[343903694,1733019040043,-508.35107161,0.00024657,3]
[343903695,1733019040055,-500.0,0.00024657,3]
[343903696,1733019040066,-500.0,0.00024657,3]
[343903697,1733019040077,-502.53524572,0.00024657,3]
[343903698,1733019040087,-502.15146587,0.00024657,3]
[343903699,1733019040098,-502.04584716,0.00024657,3]
[343903700,1733019040109,-501.31174804,0.00024657,3]
[343903701,1733019040119,-157.37857733,0.00024657,3]
[343903702,1733019040129,-500.0,0.00024657,3]
[343903703,1733019040146,-500.0,0.00024657,3]
[343903704,1733019040157,-504.97888179,0.00024657,3]
[343903705,1733019040167,-500.0,0.00024657,3]
[343903706,1733019040178,-500.0,0.00024657,3]
[343903708,1733019040189,-500.0,0.00024657,3]
[343903709,1733019040199,-503.14650182,0.00024657,3]
[343903710,1733019040210,-500.0,0.00024657,3]
[343903712,1733019040221,-502.25391277,0.00024657,3]
[343903713,1733019040232,-502.21091062,0.00024657,3]
[343903714,1733019040242,-501.87606586,0.00024657,3]
[343903715,1733019040253,-414.28702585,0.00024657,2]
[343903716,1733019040263,-200.0,0.00024657,3]
[343903717,1733019040273,-500.60975892,0.00024657,3]
[343903718,1733019040285,-500.0,0.00024657,3]
[343903719,1733019040295,-500.0,0.00024657,3]
[343903720,1733019040305,-502.54820646,0.00024657,3]
[343903721,1733019040316,-506.69485528,0.00024657,3]
[343903722,1733019040326,-506.83544975,0.00024657,3]
[343903723,1733019040336,-500.0,0.00024657,3]
[343903724,1733019040347,-505.23064295,0.00024657,3]
[343903725,1733019040357,-500.0,0.00024657,3]
[343903726,1733019040368,-500.0,0.00024657,3]
[343903727,1733019040378,-500.0,0.00024657,3]
[343903728,1733019040391,-500.0,0.00024657,3]
[343903729,1733019040405,-507.46450961,0.00024657,3]
[343903730,1733019040415,-500.0,0.00024657,3]
[343903731,1733019040425,-502.22757179,0.00024657,3]
[343903732,1733019040434,-501.10519189,0.00024657,3]
[343903733,1733019040444,-619.32323492,0.00024657,3]
[343903734,1733019040454,-510.20042518,0.00024657,3]
[343903735,1733019040464,-504.34091601,0.00024657,3]
[343903736,1733019040473,-504.48349823,0.00024657,3]
[343903737,1733019040483,-500.0,0.00024657,3]
[343903738,1733019040493,-333.88743571,0.00024657,3]
[343903739,1733019040503,-501.78736762,0.00024657,3]
[343903740,1733019040513,-500.0,0.00024657,3]
[343903741,1733019040523,-508.9085894,0.00024657,3]
[343903742,1733019040533,-500.0,0.00024657,3]
[343903743,1733019040544,-500.0,0.00024657,3]
[343903744,1733019040554,-500.0,0.00024657,3]
[343903746,1733019040564,-500.0,0.00024657,3]
[343903748,1733019040574,-500.0,0.00024657,3]
[343903750,1733019040585,-502.12595317,0.00024657,3]
[343903752,1733019040596,-500.0,0.00024657,3]
[343903753,1733019040607,-500.0,0.00024657,3]
[343903755,1733019040618,-500.0,0.00024657,3]
[343903756,1733019040628,-500.0,0.00024657,3]
[343903757,1733019040641,-500.0,0.00024657,3]
[343903758,1733019040653,-536.07700943,0.00024657,3]
[343903759,1733019040663,-501.30489051,0.00024657,3]
[343903760,1733019040673,-500.0,0.00024657,2]
[343903761,1733019040683,-507.29821097,0.00024657,3]
[343903762,1733019040694,-503.36636515,0.00024657,3]
[343903763,1733019040704,-565.0813956,0.00024657,3]
[343903764,1733019040714,-502.12978954,0.00024657,3]
[343903765,1733019040725,-500.0,0.00024657,3]
[343903766,1733019040735,-500.0,0.00024657,3]
[343903767,1733019040745,-500.0,0.00024657,3]
[343903768,1733019040755,-500.0,0.00024657,3]
[343903769,1733019040766,-505.53403609,0.00024657,3]
[343903770,1733019040778,-503.29050741,0.00024657,3]
[343903771,1733019040787,-500.0,0.00024657,3]
[343903772,1733019040798,-502.23059722,0.00024657,3]
[343903773,1733019040812,-500.0,0.00024657,3]
[343903774,1733019040822,-500.0,0.00024657,3]
[343903775,1733019040832,-500.0,0.00024657,3]
[343903776,1733019040843,-500.0,0.00024657,3]
[343903777,1733019040854,-500.0,0.00024657,3]
[343903778,1733019040864,-502.62283126,0.00024657,3]
[343903779,1733019040874,-500.0,0.00024657,3]
[343903780,1733019040884,-500.0,0.00024657,3]
[343903781,1733019040904,-500.0,0.00024657,3]
[343903782,1733019040915,-500.0,0.00024657,3]
[343903784,1733019040925,-500.0,0.00024657,3]
[343903785,1733019040935,-500.0,0.00024657,3]
[343903786,1733019040945,-500.0,0.00024657,3]
[343903787,1733019040955,-502.96830862,0.00024657,3]
[343903788,1733019040965,-508.05880567,0.00024657,3]
[343903789,1733019040975,-500.0,0.00024657,3]
[343903790,1733019040985,-500.0,0.00024657,3]
[343903791,1733019040994,-500.0,0.00024657,3]
[343903792,1733019041004,-506.44279514,0.00024657,3]
[343903793,1733019041014,-829.63,0.00024657,3]
[343903794,1733019041024,-511.0209548,0.00024657,3]
[343903795,1733019041034,-500.90558628,0.00024657,3]
[343903796,1733019041043,-500.0,0.00024657,3]
[343903797,1733019041054,-500.0,0.00024657,3]
[343903798,1733019041063,-501.16723447,0.00024657,3]
[343903799,1733019041073,-500.47494417,0.00024657,3]
[343903800,1733019041083,-524.04465758,0.00024657,3]
[343903801,1733019041093,-500.0,0.00024657,3]
[343903802,1733019041103,-501.60530831,0.00024657,3]
[343903803,1733019041114,-500.0,0.00024657,3]
[343903804,1733019041124,-509.0218995,0.00024657,3]
[343903805,1733019041134,-505.75309223,0.00024657,3]
[343903806,1733019041149,-506.12799918,0.00024657,3]
[343903807,1733019041159,-500.0,0.00024657,3]
[343903808,1733019041169,-500.0,0.00024657,3]
[343903809,1733019041179,-467.05607134,0.00024657,10]
[343903810,1733019041189,-500.0,0.00024657,3]
[343903811,1733019041199,-500.0,0.00024657,3]
[343903812,1733019041210,-500.0,0.00024657,3]
[343903813,1733019041221,-500.0,0.00024657,3]
[343903814,1733019041231,-500.0,0.00024657,3]
[343903815,1733019041241,-500.0,0.00024657,3]
[343903816,1733019041251,-503.76269769,0.00024657,3]
[343903817,1733019041261,-201.68914831,0.00024657,3]
[343903818,1733019041270,-544.49,0.00024657,3]
[343903819,1733019041384,-508.73774913,0.00024657,3]
[343903820,1733019041402,-500.0,0.00024657,3]
[343903821,1733019041412,-503.2757934,0.00024657,3]
[343903822,1733019041422,-500.0,0.00024657,3]
[343903823,1733019041431,-500.0,0.00024657,3]
[343903824,1733019041441,-507.19394001,0.00024657,3]
[343903825,1733019041450,-500.0,0.00024657,3]
[343903826,1733019041460,-500.0,0.00024657,3]
[343903827,1733019041469,-641.96,0.00024657,3]
[343903828,1733019041479,-511.27396635,0.00024657,3]
[343903829,1733019041489,-500.0,0.00024657,3]
[343903830,1733019041499,-500.0,0.00024657,3]
[343903831,1733019041508,-500.0,0.00024657,3]
[343903832,1733019041519,-513.05414268,0.00024657,3]
[343903833,1733019041530,-500.0,0.00024657,3]
[343903834,1733019041540,-500.0,0.00024657,3]
[343903835,1733019041550,-500.0,0.00024657,3]
[343903836,1733019041561,-505.00688673,0.00024657,3]
[343903837,1733019041571,-500.0,0.00024657,3]
[343903838,1733019041581,-517.92372519,0.00024657,3]
[343903839,1733019041591,-500.0,0.00024657,3]
[343903840,1733019041601,-500.0,0.00024657,3]
[343903841,1733019041611,-500.0,0.00024657,3]
[343903842,1733019041622,-500.0,0.00024657,3]
[343903843,1733019041632,-500.0,0.00024657,3]
[343903844,1733019041650,-500.0,0.00024657,3]
[343903845,1733019041660,-501.68566552,0.00024657,3]
[343903846,1733019041670,-500.88836543,0.00024657,3]
[343903847,1733019041680,-345.3047764,0.00024657,3]
[343903848,1733019041690,-500.0,0.00024657,3]
[343903849,1733019041700,-500.0,0.00024657,3]
[343903850,1733019041710,-506.1670393,0.00024657,3]
[343903851,1733019041720,-517.12426603,0.00024657,3]
[343903852,1733019041730,-506.84703287,0.00024657,3]
[343903853,1733019041739,-500.0,0.00024657,2]
[343903854,1733019041748,-500.0,0.00024657,3]
[343903855,1733019041758,-500.0,0.00024657,3]
[343903856,1733019041770,-500.0,0.00024657,3]
[343903857,1733019041781,-500.0,0.00024657,3]
[343903858,1733019041791,-497.77733665,0.00024657,3]
[343903859,1733019041801,-500.0,0.00024657,3]
[343903860,1733019041812,-500.0,0.00024657,3]
[343903861,1733019041821,-500.0,0.00024657,3]
[343903862,1733019041831,-500.0,0.00024657,3]
[343903863,1733019041841,-500.0,0.00024657,3]
[343903864,1733019041850,-500.0,0.00024657,3]
[343903865,1733019041862,-500.0,0.00024657,3]
[343903866,1733019041871,-504.70491812,0.00024657,3]
[343903867,1733019041881,-500.0,0.00024657,3]
[343903868,1733019041897,-500.0,0.00024657,3]
[343903869,1733019041908,-500.0,0.00024657,3]
[343903870,1733019041918,-536.34379533,0.00024657,3]
[343903871,1733019041929,-500.0,0.00024657,3]
[343903872,1733019041940,-500.0,0.00024657,3]
[343903873,1733019041951,-500.0,0.00024657,3]
[343903874,1733019041961,-463.34284437,0.00024657,3]
[343903875,1733019041972,-504.09845794,0.00024657,3]
[343903876,1733019041982,-501.5484629,0.00024657,3]
[343903877,1733019041993,-500.65787272,0.00024657,3]
[343903878,1733019042004,-500.0,0.00024657,3]
[343903879,1733019042014,-599.0,0.00024657,3]
[343903880,1733019042025,-506.07038923,0.00024657,3]
[343903881,1733019042036,-502.33450305,0.00024657,3]
[343903882,1733019042047,-500.0,0.00024657,3]
[343903883,1733019042058,-500.0,0.00024657,3]
[343903884,1733019042068,-500.0,0.00024657,3]
[343903885,1733019042080,-498.7594429,0.00024657,3]
[343903886,1733019042090,-502.273463,0.00024657,3]
[343903887,1733019042101,-501.80525261,0.00024657,3]
[343903888,1733019042112,-502.67757634,0.00024657,3]
[343903889,1733019042122,-592.98425257,0.00024657,3]
[343903890,1733019042132,-500.0,0.00024657,3]
[343903891,1733019042150,-501.42251764,0.00024657,3]
[343903892,1733019042161,-501.31064972,0.00024657,3]
[343903893,1733019042172,-500.0,0.00024657,3]
[343903894,1733019042182,-500.0,0.00024657,3]
[343903895,1733019042193,-490.58485314,0.00024657,3]
[343903896,1733019042204,-500.0,0.00024657,3]
[343903897,1733019042217,-500.0,0.00024657,3]
[343903898,1733019042230,-501.40675853,0.00024657,3]
[343903899,1733019042242,-500.0,0.00024657,3]
[343903900,1733019042253,-501.35044977,0.00024657,3]
[343903901,1733019042264,-664.83,0.00024657,3]
[343903902,1733019042275,-500.0,0.00024657,3]
[343903903,1733019042287,-505.07481684,0.00024657,3]
[343903904,1733019042298,-500.0,0.00024657,3]
[343903905,1733019042308,-500.0,0.00024657,3]
[343903906,1733019042319,-585.93831573,0.00024657,3]
[343903907,1733019042330,-506.10358829,0.00024657,3]
[343903908,1733019042341,-500.0,0.00024657,3]
[343903909,1733019042353,-500.0,0.00024657,3]
[343903910,1733019042364,-500.0,0.00024657,3]
[343903911,1733019042376,-500.0,0.00024657,2]
[343903912,1733019042387,-500.0,0.00024657,3]
[343903913,1733019042413,-500.0,0.00024657,3]
[343903914,1733019042424,-500.0,0.00024657,3]
[343903915,1733019042435,-503.67942624,0.00024657,3]
[343903916,1733019042446,-505.79104698,0.00024657,3]
[343903917,1733019042457,-509.67896859,0.00024657,3]
[343903918,1733019042468,-951.57,0.00024657,3]
[343903919,1733019042479,-500.0,0.00024657,3]
[343903920,1733019042490,-500.0,0.00024657,3]
[343903921,1733019042500,-500.0,0.00024657,3]
[343903922,1733019042511,-503.48430601,0.00024657,3]
[343903923,1733019042523,-716.35,0.00024657,3]
[343903924,1733019042534,-470.58191206,0.00024657,3]
[343903925,1733019042548,-500.0,0.00024657,3]
[343903926,1733019042559,-501.67349435,0.00024657,3]
[343903927,1733019042572,-500.0,0.00024657,3]
[343903928,1733019042584,-500.0,0.00024657,3]
[343903929,1733019042596,-476.33297134,0.00024657,3]
[343903930,1733019042607,-507.78583291,0.00024657,3]
[343903931,1733019042619,-577.52417291,0.00024657,3]
[343903932,1733019042631,-500.0,0.00024657,3]
[343903933,1733019042641,-500.0,0.00024657,3]
[343903934,1733019042653,-500.0,0.00024657,3]
[343903935,1733019042665,-500.48771521,0.00024657,3]
[343903936,1733019042676,-500.0,0.00024657,3]
[343903937,1733019042688,-500.0,0.00024657,3]
[343903938,1733019042700,-500.0,0.00024657,3]
[343903939,1733019042713,-500.0,0.00024657,3]
[343903940,1733019042725,-500.0,0.00024657,3]
[343903941,1733019042736,-500.0,0.00024657,3]
[343903942,1733019042750,-507.3279284,0.00024657,3]
[343903943,1733019042761,-917.94,0.00024657,3]
[343903944,1733019042772,-534.97382057,0.00024657,3]
[343903945,1733019042785,-500.0,0.00024657,3]
[343903946,1733019042796,-500.0,0.00024657,3]
[343903947,1733019042806,-503.16487562,0.00024657,3]
[343903948,1733019042818,-500.0,0.00024657,3]
[343903949,1733019042828,-500.0,0.00024657,3]
[343903950,1733019042838,-500.0,0.00024657,3]
[343903951,1733019042848,-500.0,0.00024657,3]
[343903952,1733019042860,-500.0,0.00024657,3]
[343903953,1733019042870,-500.0,0.00024657,3]
[343903954,1733019042880,-500.0,0.00024657,3]
[343903955,1733019042901,-500.0,0.00024657,3]
[343903956,1733019042918,-364.44667553,0.00024657,3]
[343903957,1733019042930,-501.27849997,0.00024657,3]
[343903958,1733019042941,-534.83282221,0.00024657,3]
[343903959,1733019042952,-500.0,0.00024657,3]
[343903960,1733019042964,-502.58065145,0.00024657,3]
[343903961,1733019042976,-500.0,0.00024657,3]
[343903962,1733019042987,-500.0,0.00024657,3]
[343903963,1733019043000,-505.79206027,0.00024657,3]
[343903964,1733019043012,-500.0,0.00024657,3]
[343903965,1733019043023,-500.0,0.00024657,3]
[343903966,1733019043035,-500.0,0.00024657,3]
[343903967,1733019043046,-500.0,0.00024657,3]
[343903968,1733019043059,-500.0,0.00024657,3]
[343903969,1733019043070,-524.28750305,0.00024657,3]
[343903970,1733019043080,-500.29639171,0.00024657,3]
[343903971,1733019043092,-500.0,0.00024657,3]
[343903972,1733019043103,-500.0,0.00024657,3]
[343903973,1733019043113,-500.0,0.00024657,3]
[343903974,1733019043123,-1377.98,0.00024657,3]
[343903975,1733019043134,-1000.0,0.00024657,2]
[343903976,1733019043145,-500.0,0.00024657,3]
[343903977,1733019043155,-502.93257498,0.00024657,3]
[343903978,1733019043166,-500.0,0.00024657,3]
[343903979,1733019043177,-502.89654489,0.00024657,3]
[343903980,1733019043187,-546.28698252,0.00024657,3]
[343903981,1733019043198,-519.43977137,0.00024657,3]
[343903982,1733019043208,-501.65205262,0.00024657,3]
[343903983,1733019043218,-500.0,0.00024657,2]
[343903984,1733019043228,-500.0,0.00024657,3]
[343903985,1733019043239,-504.84587531,0.00024657,3]
[343903986,1733019043248,-500.0,0.00024657,3]
[343903987,1733019043258,-637.23097053,0.00024657,3]
[343903988,1733019043268,-528.33549381,0.00024657,3]
[343903990,1733019043278,-1292.72,0.00024657,3]
[343903992,1733019043288,-500.0,0.00024657,3]
[343903994,1733019043297,-505.03712472,0.00024657,3]
[343903996,1733019043307,-500.0,0.00024657,3]
[343903998,1733019043318,-500.0,0.00024657,3]
[343904000,1733019043328,-508.62870812,0.00024657,3]
[343904002,1733019043339,-508.44680898,0.00024657,3]
[343904004,1733019043349,-500.0,0.00024657,3]
[343904005,1733019043361,-500.0,0.00024657,3]
[343904006,1733019043372,-1313.91,0.00024657,3]
[343904007,1733019043382,-500.0,0.00024657,3]
[343904008,1733019043392,-503.32273199,0.00024657,3]
[343904009,1733019043419,-313.74434536,0.00024657,3]
[343904010,1733019043429,-500.0,0.00024657,3]
[343904011,1733019043440,-505.40290379,0.00024657,3]
[343904012,1733019043451,-500.0,0.00024657,3]
[343904013,1733019043461,-503.00003319,0.00024657,3]
[343904014,1733019043473,-500.0,0.00024657,3]
[343904015,1733019043483,-544.98465804,0.00024657,3]
[343904016,1733019043493,-500.0,0.00024657,3]
[343904017,1733019043505,-1140.13,0.00024657,3]
[343904018,1733019043515,-209.5038292,0.00024657,3]
[343904019,1733019043525,-506.21022921,0.00024657,3]
[343904020,1733019043535,-608.81963938,0.00024657,3]
[343904021,1733019043545,-620.32272934,0.00024657,3]
[343904022,1733019043556,-500.0,0.00024657,3]
[343904023,1733019043567,-502.94134023,0.00024657,3]
[343904024,1733019043578,-500.0,0.00024657,3]
[343904025,1733019043589,-505.81175128,0.00024657,3]
[343904026,1733019043600,-574.32807208,0.00024657,3]
[343904027,1733019043610,-573.68033079,0.00024657,3]
[343904028,1733019043621,-507.24303843,0.00024657,3]
[343904029,1733019043631,-500.0,0.00024657,3]
[343904030,1733019043642,-589.33515384,0.00024657,3]
[343904032,1733019043652,-500.0,0.00024657,3]
[343904034,1733019043663,-225.7880881,0.00024658,2]
[343904036,1733019043679,-823.0,0.00024735,2]
[343904039,1733019043696,-501.96945509,0.00024931,3]
[343904041,1733019043708,-154.53196679,0.00024931,3]
[343904043,1733019043719,-500.0,0.00024931,3]
[343904045,1733019043731,-606.94020486,0.00024931,3]
[343904046,1733019043741,-500.0,0.00024931,3]
[343904047,1733019043751,-500.0,0.00024931,3]
[343904048,1733019043762,-506.35846125,0.00024931,3]
[343904049,1733019043774,-506.02095803,0.00024931,3]
[343904050,1733019043785,-501.83396661,0.00024931,3]
[343904051,1733019043796,-505.91979922,0.00024931,3]
[343904052,1733019043808,-505.71579709,0.00024931,3]
[343904053,1733019043820,-500.0,0.00024931,3]
[343904054,1733019043832,-500.0,0.00024931,3]
[343904055,1733019043958,-268.10267475,0.00024931,3]
[343904056,1733019043969,-504.63611822,0.00024931,3]
[343904057,1733019043979,-529.32675389,0.00024931,3]
[343904059,1733019043990,-500.0,0.00024931,3]
[343904060,1733019044000,-200.0,0.00024931,3]
[343904061,1733019044011,-524.72614328,0.00024931,3]
[343904062,1733019044023,-224.26997742,0.00024931,3]
[343904064,1733019044033,-501.4894837,0.00024931,3]
[343904065,1733019044044,-500.0,0.00024931,3]
[343904066,1733019044055,-502.0514544,0.00024931,3]
[343904067,1733019044066,-500.0,0.00024931,3]
[343904068,1733019044078,-505.7504333,0.00024931,3]
[343904069,1733019044088,-500.0,0.00024931,3]
[343904070,1733019044098,-500.0,0.00024931,3]
[343904071,1733019044107,-511.59070076,0.00024931,3]
[343904072,1733019044117,-500.0,0.00024931,3]
[343904073,1733019044128,-500.0,0.00024931,3]
[343904074,1733019044138,-500.0,0.00024931,3]
[343904075,1733019044148,-500.0,0.00024931,3]
[343904076,1733019044158,-508.2905563,0.00024931,3]
[343904077,1733019044168,-311.37,0.00024931,3]